Cogmind - Beta 11.1 @@@ ROGUE MODE // 2022.05.02 @ 12:53:59 Player: redd Result: Destroyed by Y-45 Defender with Heavy Assault Rifle Performance ------------- Evolutions (1) 500 Regions Visited (3) 600 Robots Destroyed (28) 140 Value Destroyed (508) 508 Prototype IDs (4) 80 Alien Tech Used (0) 0 Bonus (0) 0 TOTAL SCORE: 1828 Bonus ------- None Cogmind --------- Core Integrity 0/400 Matter 300/300 Energy 100/100 System Corruption 0% Temperature Cool (9) Movement Core (100) Ox1 Location -9/Materials Parts ------- > --- POWER (1) -------- (None) > --- PROPULSION (3) --- (None) > --- UTILITY (3) ------ Signal Interpreter Terrain Scan Processor > --- WEAPON (2) ------- Mace Mace > --- INVENTORY (5) ---- EM Pulse Gun Assault Rifle Datajack Mace Peak State ------------ > --- POWER ------------ Improved Ion Engine > --- PROPULSION ------- Wheel Wheel Compact Wheel > --- UTILITY ---------- Signal Interpreter Terrain Scanner Terrain Scan Processor > --- WEAPON ----------- Mace Mace > --- INVENTORY -------- EM Pulse Gun Assault Rifle Datajack Mace [Rating: 13] Favorites ----------- Power Light Ion Engine Engine Light Ion Engine Power Core Light Nuclear Core Propulsion Flight Unit Wheel Compact Wheel Hover Unit Hover Unit Flight Unit Flight Unit Utility Signal Interpreter Device Heat Sink Storage Small Storage Unit Processor Signal Interpreter Weapon Small Laser Energy Gun Small Laser Ballistic Gun Assault Rifle Special Weapon Welding Torch Impact Weapon Mace Build | -11 -10 -10 -9 ------- Run | Scr Mat Min Mat Slots Evolved 2 | . . . 2 Power . | . . . . Propulsion 1 | . . . 1 Utility 1 | . . . 1 Weapon . | . . . . Parts Attached 44 | 5 19 7 13 Power 4 | . 1 2 1 Engine 3 | . 1 1 1 Core 1 | . . 1 . Reactor . | . . . . Propulsion 17 | 2 10 2 3 Treads . | . . . . Leg . | . . . . Wheel 5 | 2 . . 3 Hover 3 | . 3 . . Flight 9 | . 7 2 . Utility 7 | 1 2 1 3 Device 3 | . 1 1 1 Storage 1 | 1 . . . Processor 3 | . 1 . 2 Hackware . | . . . . Protection . | . . . . Artifact . | . . . . Weapon 16 | 2 6 2 6 Energy Gun 9 | 2 6 1 . Energy Cannon . | . . . . Ballistic Gun 2 | . . 1 1 Ballistic Cannon . | . . . . Launcher . | . . . . Special Weapon 3 | . . . 3 Impact Weapon 2 | . . . 2 Slashing Weapon . | . . . . Piercing Weapon . | . . . . Special Melee Weapon . | . . . . Unidentified Prototypes . | . . . . Parts Lost 16 | . 1 1 14 Power 2 | . . . 2 Propulsion 6 | . 1 . 5 Utility 2 | . . . 2 Weapon 6 | . . 1 5 Highest Loss Streak 9 | . 1 1 9 To Critical Strikes . | . . . . Average Slot Usage (%) 87 | . 86 99 74 Engine 9 | . 10 10 4 Core 1 | . . 3 2 Wheel 7 | . 6 . 18 Hover 6 | . 7 8 . Flight 13 | . 12 19 6 Device 8 | . 5 14 8 Storage 2 | . 3 . . Processor 13 | . 12 14 15 Energy Gun 23 | . 27 26 7 Naked Turns . | . . . . Heaviest Build 12 | 8 8 9 12 Greatest Support 20 | 10 12 12 20 Greatest Overweight (x) 3 | . 2 1 3 Average Overweight (x) . | . . . . Largest Inventory Capacity 8 | 8 8 5 5 Average Capacity 5 | 6 5 5 5 Most Carried 8 | 3 8 5 5 Average Carried 4 | 2 4 4 3 Final Capacity 8 | 8 5 5 5 Final Carried 5 | 3 5 5 4 Class Distribution -------------------- 63% | Mutant 36% | Scavenger-Mutant Dominant Class ---------------- Mutant | -10/Materials Scavenger-Mutant | -10/Mines Scavenger-Mutant | -9/Materials Resources | -11 -10 -10 -9 ----------- Run | Scr Mat Min Mat Matter Collected 600 | 221 214 77 88 Remotely . | . . . . Salvage Created 641 | . 364 144 133 Parts 52 | . 34 9 9 Haulers Intercepted . | . . . . Recyclers Shooed . | . . . . Parts Field Recycled . | . . . . Retrieved Matter . | . . . . Parts Self-Destructed . | . . . . Prevented . | . . . . Kills | -11 -10 -10 -9 ------- Run | Scr Mat Min Mat Combat Hostiles Destroyed 22 | . 12 7 3 Melee 1 | . . . 1 Guns 20 | . 12 7 1 Classes Destroyed 6 | . 4 . 2 Builder 1 | . . . 1 Operator 1 | . 1 . . Watcher 4 | . 3 . 1 Swarmer 15 | . 8 6 1 Grunt 5 | . 4 1 . Sentry 2 | . . . 2 Best Kill Streak 5 | . 5 4 1 Combat Bots Only 4 | . 3 4 1 Max Kills in Single Turn 1 | . 1 1 1 Gunslinging . | . . . . Exploded . | . . . . Melee 1 | . . . 1 Uniques/NPCs Destroyed . | . . . . Combat | -11 -10 -10 -9 -------- Run | Scr Mat Min Mat Damage Taken 1526 | . 368 146 1012 Core 554 | . 111 43 400 Absorbed by Shields . | . . . . Core Remaining (%) 69 | 100 . 38 . Volleys Fired 86 | . 50 14 22 Largest 2 | . 2 2 2 Hottest 100 | . 90 90 100 Shots Fired 167 | . 100 28 39 Gun 161 | . 100 28 33 Cannon . | . . . . Launcher . | . . . . Special 6 | . . . 6 Kinetic 6 | . . 4 2 Thermal 161 | . 100 24 37 Explosive . | . . . . Electromagnetic . | . . . . Robot Hit Streak 9 | . 5 9 7 Robot Miss Streak 5 | . 5 2 2 Penetration Max . | . . . . Secondary Targets 4 | . 2 2 . Max Gunslinging Chain 1 | . 1 1 . Shots Hit Robots 99 | . 51 16 32 Core Hits 39 | . 23 9 7 Critical Kills . | . . . . Critical Parts Destroyed . | . . . . Critical Strikes 2 | . 2 . . Burn 2 | . 2 . . Melee Attacks 13 | . . . 13 Impact 13 | . . . 13 Slashing . | . . . . Piercing . | . . . . Sneak Attacks . | . . . . Combat Hostiles . | . . . . Follow-up Attacks 3 | . . . 3 Damage Inflicted 1188 | . 555 190 443 Guns 958 | . 555 190 213 Cannons . | . . . . Explosions . | . . . . Melee 194 | . . . 194 Ramming . | . . . . Kinetic 29 | . . 15 14 Thermal 965 | . 555 175 235 Explosive . | . . . . Electromagnetic . | . . . . Impact 194 | . . . 194 Slashing . | . . . . Piercing . | . . . . Highest Corruption . | . . . . Average Corruption . | . . . . Corruption Purged . | . . . . Corruption Blocked . | . . . . Overload Shots . | . . . . Overflow Damage 12 | . . . 12 Projectiles . | . . . . Explosions . | . . . . Melee 12 | . . . 12 Knockbacks . | . . . . Impact . | . . . . Kinetic . | . . . . Secondary . | . . . . Self-Inflicted Damage . | . . . . Shots . | . . . . Rammed . | . . . . Targets Rammed . | . . . . Kicked . | . . . . Crushed . | . . . . Highest Temperature 240 | . 240 119 165 Average Temperature 62 | . 61 38 84 Received Heat Transfer 432 | . 42 15 375 Effects 1 | . 1 . . Energy Bleed 1 | . 1 . . Siege Activations . | . . . . Robots Corrupted . | . . . . Combat Hostiles . | . . . . Parts Fried 2 | . . . 2 Impact Corruptions 2 | . . . 2 Robots Melted 1 | . . . 1 Combat Hostiles 1 | . . . 1 Parts Melted 2 | . . . 2 Heat Transferred 2516 | . 1481 435 600 Parts Sabotaged . | . . . . Parts Stolen . | . . . . Parts Stripped . | . . . . Power Chain Reactions . | . . . . Missiles Intercepted . | . . . . Alert | -11 -10 -10 -9 ------- Run | Scr Mat Min Mat Peak Influence 373 | . 373 263 102 Initial 102 | . . 88 102 Average 153 | . 190 175 43 Maximum Alert Level 1 | . 1 1 . Low Security (%) 59 | 100 37 76 100 Level 1 40 | . 62 23 . Level 2 . | . . . . Level 3 . | . . . . Level 4 . | . . . . Level 5 . | . . . . High Security . | . . . . Max Security . | . . . . Squads Dispatched 2 | . 1 . 1 Investigation . | . . . . Extermination . | . . . . Reinforcement 2 | . 1 . 1 Assault . | . . . . Garrison . | . . . . Intercept . | . . . . Searches Triggered . | . . . . Construction Impeded . | . . . . Haulers Reinforced . | . . . . Active Scanning Responses . | . . . . Cargo Convoy Interrupts . | . . . . Stealth | -11 -10 -10 -9 --------- Run | Scr Mat Min Mat Distress Signals 2 | . 2 . . Communications Jammed . | . . . . Distress Signals . | . . . . Times Spotted 42 | . 22 8 12 Peak Tracking Total 6 | . 3 3 6 Tactical Retreats 1 | . 1 . . Traps | -11 -10 -10 -9 ------- Run | Scr Mat Min Mat Traps Triggered 3 | . 3 . . Indirectly . | . . . . Trap Hack Attempts . | . . . . Triggered . | . . . . Disarmed . | . . . . Reprogrammed . | . . . . Reused . | . . . . Traps Extracted . | . . . . Installed . | . . . . Triggered . | . . . . Machines | -11 -10 -10 -9 ---------- Run | Scr Mat Min Mat Machines Disabled . | . . . . Max in Single Turn . | . . . . Machines Sabotaged . | . . . . Garrisons Compromised . | . . . . Overloaded Fab Kills . | . . . . Hacking | -11 -10 -10 -9 --------- Run | Scr Mat Min Mat Machines Accessed 10 | . 7 . 3 Terminals 9 | . 7 . 2 Fabricators . | . . . . Repair Stations . | . . . . Recycling Units . | . . . . Scanalyzers 1 | . . . 1 Garrison Access . | . . . . Total Hacks 28 | . 20 . 8 Successful 21 | . 14 . 7 Failed 7 | . 6 . 1 Catastrophic 1 | . . . 1 Database Lockouts . | . . . . Manual 7 | . 6 . 1 Terminals 24 | . 20 . 4 Fabricators . | . . . . Repair Stations . | . . . . Recycling Units . | . . . . Scanalyzers 4 | . . . 4 Garrison Access . | . . . . Terminal Hacks 12 | . 9 . 3 Prototype ID Bank 2 | . 2 . . Branch Access Points 1 | . 1 . . Terminal Index 1 | . 1 . . Alert Level 3 | . 1 . 2 Unreport Threat 1 | . . . 1 Maintenance Status 2 | . 2 . . Investigation Status 1 | . 1 . . Zone Layout 1 | . 1 . . Fabricator Hacks . | . . . . Repair Station Hacks . | . . . . Recycling Unit Hacks . | . . . . Scanalyzer 4 | . . . 4 Insert Component 2 | . . . 2 Analyze 2 | . . . 2 Garrison Access Hacks . | . . . . Unauthorized Hacks 5 | . 5 . . Terminals 5 | . 5 . . Botnet 5 | . 5 . . Fabricators . | . . . . Repair Stations . | . . . . Recycling Units . | . . . . Scanalyzers . | . . . . Garrison Access . | . . . . Data Cores Recovered . | . . . . Used . | . . . . Hacking Detections 9 | . 6 . 3 Full Trace Events 1 | . 1 . . Feedback Events . | . . . . Feedback Blocked . | . . . . Robot Schematics Acquired . | . . . . Robots Built . | . . . . Authchips . | . . . . Time . | . . . . Total Robot Build Rating . | . . . . Part Schematics Acquired 2 | . . . 2 Parts Built . | . . . . Authchips . | . . . . Time . | . . . . Total Part Build Rating . | . . . . Parts Repaired . | . . . . Time . | . . . . Parts Recycled . | . . . . Recycled Matter . | . . . . Retrieved Matter . | . . . . Retrieved Components . | . . . . Parts Scanalyzed 2 | . . . 2 Part Schematics Acquired 2 | . . . 2 Parts Damaged . | . . . . Bothacking | -11 -10 -10 -9 ------------ Run | Scr Mat Min Mat Used RIF Installer . | . . . . Robots Hacked . | . . . . Non-combat . | . . . . Combat . | . . . . Robot Hacks Applied . | . . . . Relay Couplers Released . | . . . . Fabnet Peak Effective % . | . . . . Robots Rewired . | . . . . Allies Hacked . | . . . . Hacks Repelled . | . . . . Allies | -11 -10 -10 -9 -------- Run | Scr Mat Min Mat Total Allies . | . . . . Largest Group . | . . . . Highest-Rated Group . | . . . . Highest-Rated Ally . | . . . . Total Orders . | . . . . Ally Attacks . | . . . . Total Damage . | . . . . Kills . | . . . . Allies Corrupted . | . . . . Allies Melted . | . . . . Intel | -11 -10 -10 -9 ------- Run | Scr Mat Min Mat Robot Analysis Total . | . . . . Derelict Logs Recovered 2 | . . 2 . Drone Launches . | . . . . Drone Recoveries . | . . . . Exploration | -11 -10 -10 -9 ------------- Run | Scr Mat Min Mat Turns Passed 1441 | 51 793 336 261 Spaces Moved 1623 | 40 894 509 180 Core 32 | 4 1 . 27 Treads . | . . . . Legs . | . . . . Wheels 254 | 36 128 . 90 Hover 391 | . 316 75 . Flight 946 | . 449 434 63 Fastest Speed 37 | 50 37 37 37 Average Speed 58 | 77 59 51 65 Slowest Speed 200 | 80 150 120 200 Overloaded Moves . | . . . . Propulsion Burnouts . | . . . . Robots Hopped 4 | . 4 . . Cave-ins Triggered . | . . . . Exploration Rate (%) 51 | 4 95 93 15 Regions Visited 3 Branch Regions 1 Pre-discovered Areas . | . . . . Known Exits Taken 2 | . 1 1 . Unknown Exits Taken 1 | 1 . . . Scrap Searched 3 | . . 3 . Spaces Dug . | . . . . Terrain Destroyed . | . . . . Melee . | . . . . Projectile . | . . . . AOE . | . . . . Terrain Rammed . | . . . . Walls Destroyed . | . . . . Machines Disabled . | . . . . Actions | -11 -10 -10 -9 --------- Run | Scr Mat Min Mat Total 1928 | 60 1055 552 261 Wait 116 | 8 68 16 24 Move 1612 | 39 885 508 180 Hop 4 | . 4 . . Pick Up 31 | 8 11 2 10 Fast Attach 9 | . 5 3 1 Attach 25 | 5 6 2 12 Detach 4 | . 3 . 1 Swap 10 | . 8 2 . Drop 21 | . 15 5 1 Fire 86 | . 50 14 22 Melee 10 | . . . 10 Ram . | . . . . Kick . | . . . . Crush . | . . . . Escape Stasis . | . . . . Rewire . | . . . . Trap . | . . . . Miscellaneous . | . . . . Route ------- -11/Scrapyard -10/Materials (discovered 4 exits: *Mat x3 / *Min) -10/Mines (discovered 2 exits: *Mat x2) -9/Materials (discovered 4 exits: Mat x3 / Min) History --------- Turn | Location | Event 10 | -11/Scrapyard | Discovered new exit (range 16) 52 | -11/Scrapyard | Entered Materials 189 | -10/Materials | Discovered new exit (range 11) 203 | -10/Materials | Identified exit to Mines 302 | -10/Materials | Discovered new exit (range 11) 418 | -10/Materials | Discovered new exit (range 7) 802 | -10/Materials | Discovered new exit (range 13) 845 | -10/Materials | Entered Mines 865 | -10/Mines | Learned Materials security intel 885 | -10/Mines | Core integrity fell below 50% 1096 | -10/Mines | Discovered new exit (range 3) 1097 | -10/Mines | Identified exit to Materials 1147 | -10/Mines | Discovered exit to Materials (range 5) 1158 | -10/Mines | Learned 8 Materials zone layouts 1181 | -10/Mines | Entered Materials 1181 | -9/Materials | Evolved 2 slots: Propulsion x1, Utility x1 1182 | -9/Materials | Identified exit to Mines 1182 | -9/Materials | Identified exit to Materials 1353 | -9/Materials | Lost 9 parts (1p2n1u5w) 1423 | -9/Materials | Core integrity fell below 50% 1438 | -9/Materials | Core integrity fell below 20% 1442 | -9/Materials | Destroyed by Y-45 Defender with Heavy Assault Rifle Last Messages --------------- 01396_ W-16 Scout system terminally corrupted. 01396_ Lgt. Ion Engine fried. 01396_ Signal Interpreter fried. 01416_ S-10 Pest destroyed. 01416_ Terrain Scanner destroyed. 01419_ Critical hit (Burn: +37). 01420_ Mace follow-up attack on S-10 Pest. 01420_ Destroyed Flight Unit. 01420_ S-10 Pest system corrupted by crushing effect. 01420_ C-30 ARC bursts open, deploying its payload. 01420_ G-47 Trooper unfolds itself. 01420_ G-34 Mercenary unfolds itself. 01424_ R-06 Scavenger collects Flight Unit. 01426_ S-10 Pest destroyed. 01430_ Wheel destroyed. 01430_ Critical hit (Burn: +37). 01431_ Wheel destroyed. 01432_ Imp. Ion Engine destroyed. 01434_ Com. Wheel destroyed. 01437_ Mace follow-up attack on Y-45 Defender. Map ----- +----------------------------------------------------+ | ???" # """"" ###??????????????# # | | ???" # """"" ""#??????????????######### | | ???" # """"" T"#?????????????########## | | ??? # """"" ""#?????????????# # | | ???##### """"" ###?????????????# # | | ???????????????????????????????????????# # | | ???????????????????????????????????????# # | | ???????????????????????????????????????# + | | ???????????????????????????????????????# """ # | | ???????????????????????????????????????# """ ## | | ???????????????????????????????????????# """ ## | | ???????????????????????????????????????# ## | | ?????????????????????????#?????#???????########### | | ?????????????????????????????????????????????????# | | ?????????????????????????????????????????????????# | | ?????????????????????????????????????????????????# | | ????????????????????#??????#?#??#????????????????# | | ????????????????????????????????#???#????????????# | | ?????????????????????????????????????????????????# | | ?????????????????????????###?????????????????????# | | ?????????????#?????????### #######???????????????? | | ???????????????#?? ????+% ##??????????????? | | ???????????????????????#"S #???????????????? | | ?????????????????????? #""" """ #?#?????????????? | | ???????????????????????#%"" """ #???????????????? | | ?????????????? ?????#?# @ Y """ #???????????????? | | ????????????????#???#??# %g a #?#?????????????? | | ??????????????? ????##?#%s g ################# | | ?????????????#???????# # + | | ?????????????? ? ??? # #+######################### | | # #??#""" # ##??#??#???????????? | | # #??#""" + #??#????###????????? | | + #??#""" # #?????#?#??????????? | | # #??# ## #????????#??##?????? | | # #??#""" ## #???#####????#?????? | | # #??#""" ## ##?#???????????#???? | | ###### #??#""" ######% #?##?###???#???????? | | ?????# #??# #??### ###########????????? | | ?????# #??############??# ## ##???????? | | ?????# #????#?????###??## ## """ #????????? | | ###### #???????????????# # ! """ #?#??????? | | ## #?????????#?????# # ! """ #???##???? | | ## #???????#???????# + ! #???#????? | | ## #???????????#???# # "" #????????? | | ## #??????????????## # S"" #???##???? | | ## #???????#??#????## ##! "" #??????#?? | | ### #????????????????# ## ##?#?#???? | | #?# #???????########## ######## ##??#?????? | | ### #??????## # ##????## ?###????? | | #???????# # ######### #??? ? | +----------------------------------------------------+ Best States ------------- Heat Dissipation 35 Energy Generation 14 Energy Capacity 265 Matter Stores 300 Matter Capacity 300 Sight Range 16 Robot Scan Range 14 Terrain Scan Range 14 Terrain Scan Density 85 Evasion (%) 62 Item Schematics ----------------- Mace | -9/Materials | Scanalyzed EM Pulse Gun | -9/Materials | Scanalyzed Robot Schematics ------------------ None Fabricated ------------ Nothing Alien Tech Used ----------------- None Achievements -------------- None Challenges ------------ None Game ------ Seed DerelictGrapheneHammer Manual? 0 Play Time 00:44:46 Cumulative 40.0 hours Start 2022.05.02 @ 12:09:10 End 2022.05.02 @ 12:53:59 Sessions 1 Manual Loads 0 Difficulty Rogue Special Mode None Game No. 31 Rogue 31 Adventurer 0 Explorer 0 Win Type - Total 0 Types 0/0/0/0/0/0/0/0/0 Lore% 19 Gallery% 16 Achievement% 16 Wizard Run 0 Options --------- ASCII 1 Keyboard 0 Movement Mouse Keybinds 0 Fullscreen 2 Font 24/Terminus Map View 130x56 Tactical HUD 1 Map Filters NONE Filters NONE Steam 1 RUN: 1bcab1e0-6eaf-4277-8409-216aa0b88df8